fUST/lending_fUST_20241223
["ID","MTS","AMOUNT","RATE_DAILY","PERIOD"]
[346340262,1734899453534,-500.0,0.00015342,2]
[346340264,1734899453544,-500.0,0.00015342,2]
[346340266,1734899453553,-500.0,0.00015342,2]
[346340268,1734899453564,-634.01,0.00015342,2]
[346340270,1734899453575,-500.0,0.00015342,2]
[346340272,1734899453584,-672.07,0.00015342,2]
[346340274,1734899453594,-500.0,0.00015342,2]
[346340276,1734899453604,-838.79,0.00015342,2]
[346340278,1734899453613,-537.68,0.00015342,2]
[346340280,1734899453623,-3545.82,0.00015342,2]
[346340282,1734899453632,-500.0,0.00015342,2]
[346340284,1734899453642,-500.0,0.00015342,2]
[346340286,1734899453651,-500.0,0.00015342,2]
[346340288,1734899453662,-500.0,0.00015342,2]
[346340290,1734899453672,-500.0,0.00015342,2]
[346340292,1734899453681,-500.0,0.00015342,2]
[346340294,1734899453691,-753.35,0.00015342,2]
[346340296,1734899453701,-537.01,0.00015342,2]
[346340298,1734899453710,-1685.38,0.00015342,2]
[346340300,1734899453720,-531.1,0.00015342,2]
[346340302,1734899453731,-11732.06,0.00015342,2]
[346340304,1734899453741,-500.0,0.00015342,2]
[346340306,1734899453750,-500.0,0.00015342,2]
[346340308,1734899453760,-512.75,0.00015342,2]
[346340310,1734899453770,-500.0,0.00015342,2]
[346340312,1734899453779,-1845.84,0.00015342,2]
[346340314,1734899453789,-500.0,0.00015342,2]
[346340316,1734899453798,-579.92,0.00015342,2]
[346340319,1734899453808,-2013.94,0.00015342,2]
[346340321,1734899453821,-506.27,0.00015342,2]
[346340323,1734899453831,-27229.4,0.00015342,2]
[346340325,1734899453840,-500.0,0.00015342,2]
[346340327,1734899453852,-500.0,0.00015342,2]
[346340329,1734899453862,-1318.98,0.00015342,2]
[346340330,1734899453871,-7122.45,0.00015342,2]
[346340333,1734899453881,-500.0,0.00015342,2]
[346340335,1734899453889,-1310.49,0.00015342,2]
[346340337,1734899453898,-9053.51,0.00015342,2]
[346340339,1734899453907,-500.0,0.00015342,2]
[346340341,1734899453917,-296.02876915,0.00015342,2]
[346340343,1734899453926,-500.0,0.00015342,2]
[346340345,1734899453935,-1434.67,0.00015342,2]
[346340347,1734899453944,-500.0,0.00015342,2]
[346340349,1734899453953,-500.0,0.00015342,2]
[346340351,1734899453963,-1202.81,0.00015342,2]
[346340353,1734899453972,-500.0,0.00015342,2]
[346340355,1734899453982,-500.0,0.00015342,2]
[346340357,1734899453997,-601.77,0.00015342,2]
[346340359,1734899454006,-637.13,0.00015342,2]
[346340361,1734899454015,-500.0,0.00015342,2]
[346340363,1734899454025,-753.29,0.00015342,2]
[346340365,1734899454035,-661.66,0.00015342,2]
[346340367,1734899454044,-2970.72,0.00015342,2]
[346340369,1734899454053,-500.0,0.00015342,2]
[346340371,1734899454063,-500.0,0.00015342,2]
[346340373,1734899454073,-1261.25,0.00015342,2]
[346340375,1734899454084,-500.0,0.00015342,2]
[346340377,1734899454093,-2865.71,0.00015342,2]
[346340379,1734899454102,-844.59,0.00015342,2]
[346340381,1734899454111,-3391.47,0.00015342,2]
[346340383,1734899454121,-639.42,0.00015342,2]
[346340385,1734899454131,-1571.74,0.00015342,2]
[346340387,1734899454139,-1500.92,0.00015342,2]
[346340389,1734899454148,-500.0,0.00015342,2]
[346340391,1734899454157,-946.43,0.00015342,2]
[346340393,1734899454167,-500.0,0.00015342,2]
[346340395,1734899454176,-1886.65,0.00015342,2]
[346340397,1734899454185,-718.82,0.00015342,2]
[346340399,1734899454195,-814.99,0.00015342,2]
[346340401,1734899454204,-500.0,0.00015342,2]
[346340403,1734899454214,-500.0,0.00015342,2]
[346340405,1734899454223,-500.0,0.00015342,2]
[346340407,1734899454232,-829.57,0.00015342,2]
[346340409,1734899454241,-2146.25,0.00015342,2]
[346340411,1734899454250,-625.0,0.000154,5]
[346340413,1734899454259,-160.0,0.00015493,3]
[346340415,1734899454268,-2000.0,0.000155,2]
[346340417,1734899454278,-1000.0,0.00015561,2]
[346340419,1734899454287,-661.7,0.00015616,2]
[346340421,1734899454296,-500.0,0.00015616,2]
[346340423,1734899454305,-500.0,0.00015616,2]
[346340425,1734899454314,-500.0,0.00015616,2]
[346340427,1734899454323,-500.0,0.00015616,2]
[346340429,1734899454333,-633.59,0.00015616,2]
[346340448,1734899454492,-582.95,0.00015616,2]
[346340450,1734899454504,-988.04,0.00015616,2]
[346340452,1734899454514,-996.84,0.00015616,2]
[346340454,1734899454523,-500.0,0.00015616,2]
[346340456,1734899454532,-500.0,0.00015616,2]
[346340458,1734899454542,-500.0,0.00015616,2]
[346340460,1734899454551,-791.35,0.00015616,2]
[346340462,1734899454561,-500.0,0.00015616,2]
[346340464,1734899454570,-1032.67,0.00015616,2]
[346340467,1734899454580,-500.0,0.00015616,2]
[346340469,1734899454589,-500.0,0.00015616,2]
[346340471,1734899454598,-625.52,0.00015616,2]
[346340473,1734899454607,-622.29,0.00015616,2]
[346340475,1734899454616,-500.0,0.00015616,2]
[346340477,1734899454626,-500.0,0.00015616,2]
[346340479,1734899454637,-752.42,0.00015616,2]
[346340481,1734899454646,-168.0,0.00015616,2]
[346340483,1734899454656,-629.53,0.00015616,2]
[346340485,1734899454665,-500.0,0.00015616,2]
[346340487,1734899454675,-2032.24,0.00015616,2]
[346340489,1734899454684,-500.0,0.00015616,2]
[346340491,1734899454693,-632.76,0.00015616,2]
[346340493,1734899454702,-955.66,0.00015616,2]
[346340495,1734899454713,-500.0,0.00015616,2]
[346340497,1734899454722,-601.33,0.00015616,2]
[346340499,1734899454731,-1256.22,0.00015616,2]
[346340501,1734899454741,-500.0,0.00015616,2]
[346340503,1734899454751,-664.31,0.00015616,2]
[346340505,1734899454760,-615.02,0.00015616,2]
[346340507,1734899454769,-1257.34,0.00015616,2]
[346340509,1734899454778,-516.04,0.00015616,2]
[346340511,1734899454788,-641.21,0.00015616,2]
[346340513,1734899454797,-500.0,0.00015616,2]
[346340515,1734899454806,-500.0,0.00015616,2]
[346340517,1734899454818,-500.0,0.00015616,2]
[346340519,1734899454827,-811.1,0.00015616,2]
[346340521,1734899454837,-500.0,0.00015616,2]
[346340523,1734899454846,-500.0,0.00015616,2]
[346340525,1734899454856,-972.67,0.00015616,2]
[346340527,1734899454865,-500.0,0.00015616,2]
[346340529,1734899454874,-871.97,0.00015616,2]
[346340531,1734899454884,-804.52,0.00015616,2]
[346340533,1734899454893,-1069.41,0.00015616,2]
[346340535,1734899454902,-500.0,0.00015616,2]
[346340538,1734899454912,-500.0,0.00015616,2]
[346340540,1734899454921,-500.0,0.00015616,2]
[346340542,1734899454930,-212.82528,0.00015616,2]
[346340544,1734899454939,-212.82528,0.00015616,2]
[346340546,1734899454948,-500.0,0.00015616,2]
[346340548,1734899454957,-500.0,0.00015616,2]
[346340550,1734899454967,-500.0,0.00015616,2]
[346340552,1734899454976,-500.0,0.00015616,2]
[346340553,1734899454988,-500.0,0.00015616,2]
[346340556,1734899454998,-500.0,0.00015616,2]
[346340558,1734899455007,-634.01,0.00015616,2]
[346340559,1734899455017,-500.0,0.00015616,2]
[346340562,1734899455028,-672.07,0.00015616,2]
[346340564,1734899455037,-500.0,0.00015616,2]
[346340566,1734899455046,-838.79,0.00015616,2]
[346340568,1734899455055,-537.68,0.00015616,2]
[346340570,1734899455067,-3545.82,0.00015616,2]
[346340572,1734899455076,-500.0,0.00015616,2]
[346340574,1734899455085,-500.0,0.00015616,2]
[346340575,1734899455094,-500.0,0.00015616,2]
[346340577,1734899455104,-500.0,0.00015616,2]
[346340579,1734899455113,-500.0,0.00015616,2]
[346340582,1734899455122,-500.0,0.00015616,2]
[346340583,1734899455131,-753.35,0.00015616,2]
[346340585,1734899455141,-537.01,0.00015616,2]
[346340587,1734899455151,-1685.38,0.00015616,2]
[346340590,1734899455160,-531.1,0.00015616,2]
[346340592,1734899455170,-11732.06,0.00015616,2]
[346340594,1734899455180,-500.0,0.00015616,2]
[346340595,1734899455189,-500.0,0.00015616,2]
[346340597,1734899455199,-512.75,0.00015616,2]
[346340599,1734899455208,-500.0,0.00015616,2]
[346340601,1734899455218,-500.0,0.00015616,2]
[346340603,1734899455227,-1845.84,0.00015616,2]
[346340604,1734899455236,-579.92,0.00015616,2]
[346340605,1734899455246,-2013.94,0.00015616,2]
[346340606,1734899455255,-506.27,0.00015616,2]
[346340607,1734899455264,-27229.4,0.00015616,2]
[346340608,1734899455273,-500.0,0.00015616,2]
[346340609,1734899455283,-151.0,0.00015616,2]
[346340610,1734899455292,-500.0,0.00015616,2]
[346340611,1734899455302,-7122.45,0.00015616,2]
[346340612,1734899455312,-1318.98,0.00015616,2]
[346340613,1734899455324,-500.0,0.00015616,2]
[346340614,1734899455334,-1310.49,0.00015616,2]
[346340615,1734899455343,-9053.51,0.00015616,2]
[346340616,1734899455353,-500.0,0.00015616,2]
[346340617,1734899455363,-500.0,0.00015616,2]
[346340619,1734899455372,-1434.67,0.00015616,2]
[346340621,1734899455382,-500.0,0.00015616,2]
[346340623,1734899455391,-500.0,0.00015616,2]
[346340625,1734899455401,-1202.81,0.00015616,2]
[346340627,1734899455411,-500.0,0.00015616,2]
[346340629,1734899455421,-500.0,0.00015616,2]
[346340631,1734899455430,-601.77,0.00015616,2]
[346340633,1734899455439,-637.13,0.00015616,2]
[346340635,1734899455449,-500.0,0.00015616,2]
[346340637,1734899455459,-753.29,0.00015616,2]
[346340640,1734899455468,-661.66,0.00015616,2]
[346340642,1734899455478,-2970.72,0.00015616,2]
[346340644,1734899455488,-500.0,0.00015616,2]
[346340646,1734899455497,-500.0,0.00015616,2]
[346340648,1734899455507,-500.0,0.00015616,2]
[346340650,1734899455516,-1261.25,0.00015616,2]
[346340652,1734899455526,-2865.71,0.00015616,2]
[346340654,1734899455536,-844.59,0.00015616,2]
[346340656,1734899455546,-3391.47,0.00015616,2]
[346340658,1734899455555,-639.42,0.00015616,2]
[346340660,1734899455567,-1571.74,0.00015616,2]
[346340662,1734899455575,-1500.92,0.00015616,2]
[346340663,1734899455585,-1249.952365,0.00015616,2]
[346340665,1734899455594,-500.0,0.00015616,2]
[346340667,1734899455603,-1249.952365,0.00015616,2]
[346340669,1734899455613,-946.43,0.00015616,2]
[346340672,1734899455624,-500.0,0.00015616,2]
[346340674,1734899455633,-1886.65,0.00015616,2]
[346340676,1734899455645,-718.82,0.00015616,2]
[346340678,1734899455655,-814.99,0.00015616,2]
[346340680,1734899455665,-500.0,0.00015616,2]
[346340682,1734899455674,-500.0,0.00015616,2]
[346340684,1734899455684,-500.0,0.00015616,2]
[346340686,1734899455693,-829.57,0.00015616,2]
[346340688,1734899455703,-2146.25,0.00015616,2]
[346340690,1734899455712,-318.035,0.0001562,2]
[346340692,1734899455722,-934.98885346,0.00015744,2]
[346340694,1734899455731,-1500.0,0.00015869,2]
[346340696,1734899455741,-1500.0,0.00015869,2]
[346340698,1734899455751,-160.0,0.00015874,4]
[346340700,1734899455760,-1500.0,0.0001589,2]
[346340701,1734899455770,-661.7,0.0001589,2]
[346340703,1734899455779,-500.0,0.0001589,2]
[346340705,1734899455789,-500.0,0.0001589,2]
[346340707,1734899455798,-500.0,0.0001589,2]
[346340709,1734899455807,-500.0,0.0001589,2]
[346340711,1734899455821,-633.59,0.0001589,2]
[346340713,1734899455832,-582.95,0.0001589,2]
[346340715,1734899455842,-192.577086,0.0001589,2]
[346340717,1734899455851,-192.577086,0.0001589,2]
[346340719,1734899455860,-988.04,0.0001589,2]
[346340721,1734899455870,-996.84,0.0001589,2]
[346340723,1734899455879,-500.0,0.0001589,2]
[346340725,1734899455888,-500.0,0.0001589,2]
[346340727,1734899455897,-500.0,0.0001589,2]
[346340729,1734899455906,-791.35,0.0001589,2]
[346340731,1734899455916,-500.0,0.0001589,2]
[346340734,1734899455926,-1032.67,0.0001589,2]
[346340736,1734899455935,-151.0,0.0001589,2]
[346340738,1734899455944,-500.0,0.0001589,2]
[346340740,1734899455953,-151.0,0.0001589,2]
[346340742,1734899455962,-500.0,0.0001589,2]
[346340744,1734899455971,-625.52,0.0001589,2]
[346340746,1734899455981,-622.29,0.0001589,2]
[346340748,1734899455994,-500.0,0.0001589,2]
[346340750,1734899456004,-500.0,0.0001589,2]
[346340752,1734899456013,-752.42,0.0001589,2]
[346340753,1734899456023,-168.0,0.0001589,2]
[346340756,1734899456035,-629.53,0.0001589,2]
[346340757,1734899456044,-500.0,0.0001589,2]
[346340760,1734899456054,-2032.24,0.0001589,2]
[346340762,1734899456065,-500.0,0.0001589,2]
[346340763,1734899456075,-632.76,0.0001589,2]
[346340765,1734899456085,-955.66,0.0001589,2]
[346340768,1734899456095,-151.0,0.0001589,2]
[346340770,1734899456104,-500.0,0.0001589,2]
[346340771,1734899456114,-151.0,0.0001589,2]
[346340774,1734899456124,-601.33,0.0001589,2]
[346340775,1734899456133,-1256.22,0.0001589,2]
[346340777,1734899456143,-500.0,0.0001589,2]
[346340779,1734899456153,-151.0,0.0001589,2]
[346340782,1734899456162,-305.494541,0.0001589,2]
[346340784,1734899456172,-664.31,0.0001589,2]
[346340786,1734899456181,-305.494541,0.0001589,2]
[346340788,1734899456190,-151.0,0.0001589,2]
[346340790,1734899456200,-151.0,0.0001589,2]
[346340792,1734899456213,-615.02,0.0001589,2]
[346340794,1734899456227,-1257.34,0.0001589,2]
[346340797,1734899456240,-516.04,0.0001589,2]
[346340799,1734899456253,-641.21,0.0001589,2]
[346340802,1734899456265,-500.0,0.0001589,2]
[346340804,1734899456276,-228.1010783,0.0001589,2]
[346340806,1734899456289,-500.0,0.0001589,2]
[346340808,1734899456301,-811.1,0.0001589,2]
[346340811,1734899456317,-500.0,0.0001589,2]
[346340813,1734899456329,-500.0,0.0001589,2]
[346340816,1734899456343,-972.67,0.0001589,2]
[346340818,1734899456354,-500.0,0.0001589,2]
[346340820,1734899456366,-871.97,0.0001589,2]
[346340822,1734899456378,-804.52,0.0001589,2]
[346340825,1734899456390,-1069.41,0.0001589,2]
[346340827,1734899456403,-500.0,0.0001589,2]
[346340829,1734899456414,-500.0,0.0001589,2]
[346340832,1734899456426,-623.50307902,0.0001589,2]
[346340834,1734899456437,-500.0,0.0001589,2]
[346340836,1734899456449,-151.0,0.0001589,2]
[346340839,1734899456461,-500.0,0.0001589,2]
[346340841,1734899456472,-151.0,0.0001589,2]
[346340843,1734899456485,-500.0,0.0001589,2]
[346340845,1734899456495,-500.0,0.0001589,2]
[346340847,1734899456505,-500.0,0.0001589,2]
[346340850,1734899456516,-500.0,0.0001589,2]
[346340852,1734899456527,-221.36815,0.0001589,2]
[346340854,1734899456539,-634.01,0.0001589,2]
[346340856,1734899456551,-221.36815,0.0001589,2]
[346340858,1734899456563,-500.0,0.0001589,2]
[346340861,1734899456578,-672.07,0.0001589,2]
[346340863,1734899456590,-500.0,0.0001589,2]
[346340866,1734899456602,-838.79,0.0001589,2]
[346340868,1734899456615,-537.68,0.0001589,2]
[346340870,1734899456632,-3545.82,0.0001589,2]
[346340873,1734899456643,-623.88534992,0.0001589,2]
[346340875,1734899456654,-500.0,0.0001589,2]
[346340877,1734899456664,-500.0,0.0001589,2]
[346340879,1734899456675,-500.0,0.0001589,2]
[346340881,1734899456687,-500.0,0.0001589,2]
[346340884,1734899456699,-251.09291228,0.0001589,2]
[346340886,1734899456713,-753.35,0.0001589,2]
[346340889,1734899456726,-537.01,0.0001589,2]
[346340891,1734899456738,-1685.38,0.0001589,2]
[346340893,1734899456749,-531.1,0.0001589,2]
[346340895,1734899456761,-11732.06,0.0001589,2]
[346340897,1734899456773,-500.0,0.0001589,2]
[346340900,1734899456785,-500.0,0.0001589,2]
[346340902,1734899456797,-512.75,0.0001589,2]
[346340904,1734899456807,-500.0,0.0001589,2]
[346340906,1734899456821,-500.0,0.0001589,2]
[346340908,1734899456832,-1845.84,0.0001589,2]
[346340911,1734899456844,-579.92,0.0001589,2]
[346340913,1734899456855,-2013.94,0.0001589,2]
[346340915,1734899456866,-506.27,0.0001589,2]
[346340917,1734899456878,-27229.4,0.0001589,2]
[346340919,1734899456889,-500.0,0.0001589,2]
[346340922,1734899456900,-500.0,0.0001589,2]
[346340924,1734899456911,-7122.45,0.0001589,2]
[346340926,1734899456922,-1318.98,0.0001589,2]
[346340928,1734899456933,-500.0,0.0001589,2]
[346340930,1734899456944,-1310.49,0.0001589,2]
[346340933,1734899456954,-9053.51,0.0001589,2]
[346340935,1734899456965,-476.99828159,0.0001589,2]
[346340937,1734899456976,-500.0,0.0001589,2]
[346340939,1734899456990,-1434.67,0.0001589,2]
[346340941,1734899457001,-500.0,0.0001589,2]
[346340944,1734899457012,-500.0,0.0001589,2]
[346340946,1734899457023,-1202.81,0.0001589,2]
[346340948,1734899457034,-500.0,0.0001589,2]
[346340950,1734899457046,-500.0,0.0001589,2]
[346340952,1734899457057,-601.77,0.0001589,2]
[346340954,1734899457069,-637.13,0.0001589,2]
[346340956,1734899457080,-500.0,0.0001589,2]
[346340959,1734899457091,-753.29,0.0001589,2]
[346340961,1734899457103,-661.66,0.0001589,2]
[346340963,1734899457113,-2970.72,0.0001589,2]
[346340965,1734899457125,-500.0,0.0001589,2]
[346340968,1734899457136,-500.0,0.0001589,2]
[346340970,1734899457147,-500.0,0.0001589,2]
[346340972,1734899457158,-1261.25,0.0001589,2]
[346340974,1734899457169,-2865.71,0.0001589,2]
[346340976,1734899457180,-844.59,0.0001589,2]
[346340979,1734899457191,-3391.47,0.0001589,2]
[346340981,1734899457202,-639.42,0.0001589,2]
[346340983,1734899457213,-1571.74,0.0001589,2]
[346340985,1734899457223,-1500.92,0.0001589,2]
[346340987,1734899457234,-500.0,0.0001589,2]
[346340990,1734899457245,-946.43,0.0001589,2]
[346340992,1734899457255,-500.0,0.0001589,2]
[346340994,1734899457266,-1886.65,0.0001589,2]
[346340996,1734899457277,-718.82,0.0001589,2]
[346340998,1734899457288,-814.99,0.0001589,2]
[346341001,1734899457299,-500.0,0.0001589,2]
[346341003,1734899457309,-500.0,0.0001589,2]
[346341005,1734899457322,-500.0,0.0001589,2]
[346341007,1734899457333,-829.57,0.0001589,2]
[346341009,1734899457343,-2146.25,0.0001589,2]
[346341011,1734899457354,-1411.79687097,0.00015982,2]
[346341014,1734899457365,-151.0,0.0001602,2]
[346341016,1734899457376,-661.7,0.00016164,2]
[346341018,1734899457386,-500.0,0.00016164,2]
[346341020,1734899457397,-500.0,0.00016164,2]
[346341023,1734899457408,-500.0,0.00016164,2]
[346341025,1734899457419,-500.0,0.00016164,2]
[346341027,1734899457429,-151.0,0.00016164,2]
[346341029,1734899457439,-633.59,0.00016164,2]
[346341031,1734899457450,-582.95,0.00016164,2]
[346341033,1734899457460,-988.04,0.00016164,2]
[346341036,1734899457471,-996.84,0.00016164,2]
[346341038,1734899457482,-500.0,0.00016164,2]
[346341040,1734899457493,-500.0,0.00016164,2]
[346341042,1734899457504,-500.0,0.00016164,2]
[346341044,1734899457515,-791.35,0.00016164,2]
[346341047,1734899457526,-500.0,0.00016164,2]
[346341049,1734899457537,-1032.67,0.00016164,2]
[346341051,1734899457547,-500.0,0.00016164,2]
[346341053,1734899457558,-500.0,0.00016164,2]
[346341055,1734899457572,-625.52,0.00016164,2]
[346341057,1734899457582,-622.29,0.00016164,2]
[346341060,1734899457593,-500.0,0.00016164,2]
[346341062,1734899457605,-500.0,0.00016164,2]
[346341063,1734899457616,-752.42,0.00016164,2]
[346341064,1734899457626,-168.0,0.00016164,2]
[346341065,1734899457637,-629.53,0.00016164,2]
[346341066,1734899457648,-500.0,0.00016164,2]
[346341067,1734899457658,-2032.24,0.00016164,2]
[346341068,1734899457669,-500.0,0.00016164,2]
[346341069,1734899457679,-632.76,0.00016164,2]
[346341070,1734899457688,-955.66,0.00016164,2]
[346341071,1734899457697,-500.0,0.00016164,2]
[346341072,1734899457706,-601.33,0.00016164,2]
[346341073,1734899457716,-1256.22,0.00016164,2]
[346341074,1734899457726,-500.0,0.00016164,2]
[346341075,1734899457735,-664.31,0.00016164,2]
[346341077,1734899457745,-615.02,0.00016164,2]
[346341079,1734899457754,-1257.34,0.00016164,2]
[346341081,1734899457764,-516.04,0.00016164,2]
[346341083,1734899457774,-641.21,0.00016164,2]
[346341085,1734899457783,-500.0,0.00016164,2]
[346341087,1734899457792,-500.0,0.00016164,2]
[346341089,1734899457801,-811.1,0.00016164,2]
[346341091,1734899457811,-500.0,0.00016164,2]
[346341093,1734899457823,-500.0,0.00016164,2]
[346341095,1734899457832,-972.67,0.00016164,2]
[346341097,1734899457841,-500.0,0.00016164,2]
[346341099,1734899457851,-871.97,0.00016164,2]
[346341101,1734899457860,-804.52,0.00016164,2]
[346341103,1734899457870,-1069.41,0.00016164,2]
[346341105,1734899457879,-500.0,0.00016164,2]
[346341107,1734899457888,-500.0,0.00016164,2]
[346341109,1734899457897,-500.0,0.00016164,2]
[346341111,1734899457906,-500.0,0.00016164,2]
[346341113,1734899457916,-398.01568401,0.00016164,2]
[346341115,1734899457925,-500.0,0.00016164,2]
[346341117,1734899457934,-500.0,0.00016164,2]
[346341119,1734899457944,-500.0,0.00016164,2]
[346341121,1734899457953,-634.01,0.00016164,2]
[346341123,1734899457963,-500.0,0.00016164,2]
[346341126,1734899457972,-672.07,0.00016164,2]
[346341128,1734899457982,-500.0,0.00016164,2]
[346341130,1734899457995,-838.79,0.00016164,2]
[346341132,1734899458005,-537.68,0.00016164,2]
[346341134,1734899458014,-3545.82,0.00016164,2]
[346341136,1734899458023,-500.0,0.00016164,2]
[346341138,1734899458035,-500.0,0.00016164,2]
[346341140,1734899458045,-500.0,0.00016164,2]
[346341142,1734899458055,-500.0,0.00016164,2]
[346341143,1734899458065,-753.35,0.00016164,2]
[346341146,1734899458076,-537.01,0.00016164,2]
[346341148,1734899458085,-1685.38,0.00016164,2]
[346341150,1734899458095,-531.1,0.00016164,2]
[346341152,1734899458104,-11732.06,0.00016164,2]
[346341187,1734899458113,-500.0,0.00016164,2]
[346341190,1734899458436,-500.0,0.00016164,2]
[346341193,1734899458456,-512.75,0.00016164,2]
[346341196,1734899458470,-500.0,0.00016164,2]
[346341198,1734899458479,-500.0,0.00016164,2]
[346341200,1734899458488,-1845.84,0.00016164,2]
[346341202,1734899458498,-579.92,0.00016164,2]
[346341204,1734899458507,-2013.94,0.00016164,2]
[346341206,1734899458516,-506.27,0.00016164,2]
[346341208,1734899458526,-27229.4,0.00016164,2]
[346341210,1734899458535,-500.0,0.00016164,2]
[346341212,1734899458544,-151.0,0.00016164,2]
[346341214,1734899458554,-500.0,0.00016164,2]
[346341216,1734899458563,-7122.45,0.00016164,2]
[346341217,1734899458573,-1318.98,0.00016164,2]
[346341218,1734899458582,-500.0,0.00016164,2]
[346341219,1734899458592,-1310.49,0.00016164,2]
[346341220,1734899458601,-9053.51,0.00016164,2]
[346341221,1734899458610,-618.24390204,0.00016164,2]
[346341222,1734899458620,-1434.67,0.00016164,2]
[346341223,1734899458630,-500.0,0.00016164,2]
[346341224,1734899458640,-500.0,0.00016164,2]
[346341225,1734899458649,-1202.81,0.00016164,2]
[346341226,1734899458659,-500.0,0.00016164,2]
[346341227,1734899458669,-500.0,0.00016164,2]
[346341228,1734899458678,-601.77,0.00016164,2]
[346341229,1734899458688,-637.13,0.00016164,2]
[346341230,1734899458698,-500.0,0.00016164,2]
[346341231,1734899458707,-753.29,0.00016164,2]
[346341232,1734899458716,-661.66,0.00016164,2]
[346341233,1734899458726,-2970.72,0.00016164,2]
[346341234,1734899458736,-500.0,0.00016164,2]
[346341235,1734899458746,-500.0,0.00016164,2]
[346341236,1734899458755,-500.0,0.00016164,2]
[346341237,1734899458765,-1261.25,0.00016164,2]
[346341238,1734899458774,-2865.71,0.00016164,2]
[346341239,1734899458784,-844.59,0.00016164,2]
[346341240,1734899458793,-3391.47,0.00016164,2]
[346341241,1734899458803,-639.42,0.00016164,2]
[346341242,1734899458813,-1571.74,0.00016164,2]
[346341243,1734899458823,-1500.92,0.00016164,2]
[346341244,1734899458832,-1249.952365,0.00016164,2]
[346341245,1734899458841,-500.0,0.00016164,2]
[346341246,1734899458850,-1249.952365,0.00016164,2]
[346341247,1734899458860,-946.43,0.00016164,2]
[346341248,1734899458869,-500.0,0.00016164,2]
[346341249,1734899458878,-1886.65,0.00016164,2]
[346341250,1734899458887,-718.82,0.00016164,2]
[346341251,1734899458897,-814.99,0.00016164,2]
[346341252,1734899458906,-500.0,0.00016164,2]
[346341253,1734899458915,-500.0,0.00016164,2]
[346341254,1734899458924,-500.0,0.00016164,2]
[346341255,1734899458933,-829.57,0.00016164,2]
[346341256,1734899458942,-2146.25,0.00016164,2]
[346341257,1734899458951,-587.0,0.00016242,2]
[346341258,1734899458961,-160.0,0.00016254,5]
[346341259,1734899458970,-587.0,0.00016358,2]
[346341260,1734899458979,-151.0,0.00016437,2]
[346341261,1734899458992,-661.7,0.00016438,2]
[346341262,1734899459001,-500.0,0.00016438,2]
[346341263,1734899459010,-500.0,0.00016438,2]
[346341265,1734899459019,-500.0,0.00016438,2]
[346341266,1734899459029,-500.0,0.00016438,2]
[346341267,1734899459038,-633.59,0.00016438,2]
[346341269,1734899459048,-582.95,0.00016438,2]